{"text_format":"1","workbook":"xlsx","n_sheets":5,"sheets":["Version history","COVER","INPUT and OUTPUT","Fuel Data - heating values","Unit conversion calculations"],"not_rendered":{"charts":0,"images":4,"macros":1,"external_links":1,"defined_names":15,"comments":2,"pivot_tables":0},"unopened":[],"bounds":{"document_bytes":16777216,"sheet_cells":100000,"rows_first":2000,"rows_last":500,"rows_between":2000,"halvings":0,"cell_chars":16384,"cell_head_chars":4096},"cells_cut":0,"cells_raw":0,"read":"whole","date_system":"1900"}

{"sheet":"Version history","index":0,"n_rows":2,"n_cols":4,"rows_kept":2,"cut":false,"hidden":false,"merged":[]}
[]
[null,"Date","Version","Comments"]

{"sheet":"COVER","index":1,"n_rows":61,"n_cols":19,"rows_kept":61,"cut":false,"hidden":false,"merged":[[8,2,10,22],[32,16,38,16],[37,8,37,12],[39,8,39,12],[59,3,59,20]]}
[]
[]
[]
[]
[]
[]
[]
[null,null,"INTRO"]
[null,null,"Le Centre régional de l'Énergie renouvelable et de l'efficacité énergétique de la CEDEAO (ECREEE), au nom des membres de la Communauté économique des États de l'Afrique de l'Ouest (CEDEAO), a demandé un soutien au service de dialogue par le partenariat de l'UE pour l'initiative énergétique (EUEI PDF) pour le développement d'un ensemble d'outils (boîte à outils) pour définir des tarifs pour les énergies renouvelables et fournir une assistance technique pour le calcul des tarifs des énergies renouvelables. En conséquence, EMRC (membre du MRC Group) a été mandaté par EUEI PDF pour développer une boîte à outils comprenant plusieurs modèles tarifaires standard pour calculer les tarifs des technologies renouvelables et un manuel d'utilisation associé.\nCe modèle basé sur Excel couvre la conversion d'unités pour les combustibles.\n"]
[]
[]
[]
[]
[null,null,"PANNEAU DE COMMANDE"]
[]
[]
[]
[]
[null,null,null,null,null,null,"Status:",{"$f":"WksProtected('INPUT and OUTPUT'!A1)","v":"Protégé"}]
[]
[]
[]
[]
[]
[]
[]
[null,null,"BOITE À OUTILS"]
[null,null,"Ceci est le modèle conversion d'unités des combustibles",null,null,null,null,"La boîte à outils est composée de 6 modèles Excel:"]
[]
[null,null,null,null,null,"Trois modèles de projects renouvelables",null,null,null,null,null,null,null,null,null,"Un modèle"]
[null,null,null,null,null,null,null,null,null,null,null,null,null,null,null,"d'objetifs de politique"]
[]
[null,null,null,null,null,null,null,null,"1. IPP Renouvelable",null,"2. Prossommateur",null,"3. Mini-réseau vert",null,null,null,"6. Modèle courbe d'offre"]
[]
[]
[]
[]
[null,null,null,null,null,"Deux modèles  pour",null,null,"4. Profil énergie éolienne"]
[null,null,null,null,null,"aider à la conversion"]
[null,null,null,null,null,"de données d'entrée",null,null,"5. Conversion unités combustible"]
[]
[]
[]
[]
[null,null,"LÉGENDE"]
[null,null,null,"Onglets:",null,null,null,null,null,null,null,null,null,null,null,null,"Code de couleurs pour les cellules:"]
[null,null,null,null,"Cover",null,"Introduction avec des informations générales sur le modèle"]
[null,null,null,null,"Fuel unit convertor",null,"Feuille d'entrée et sortie de données",null,null,null,null,null,null,null,null,null,null,12.34,"Entrée (données codées)"]
[null,null,null,null,"Support fuel data",null,"Données auxiliaires pour la conversion des combustibles",null,null,null,null,null,null,null,null,null,null,12.34,"Formules et références (calculs)"]
[null,null,null,null,"Support units data",null,"Données auxiliaires et calculs pour la conversion d'unités",null,null,null,null,null,null,null,null,null,null,12.34,"Scénario ou sélection actuelle"]
[null,null,null,null,null,null,null,null,null,null,null,null,null,null,null,null,null,12.34,"Zone inactif (avec la sélection d'option actuelle)"]
[]
[]
[]
[]
[]
[]
[]
[null,null,"AVERTISSEMENT"]
[null,null,null,"Cet outil financier est uniquement à des fins d'information. Le MRC Group, ECREEE et l'EUEI PDF ne sont pas responsables et n'acceptent aucune responsabilité quant à l'exactitude de cet outil financier ou à toute donnée qu'il contient."]
[null,null,null,"Cet outil financier ne représente pas une approbation par MRC Group, ECREEE ou l'EUEI PDF de toute activité ou projet."]

{"sheet":"INPUT and OUTPUT","index":2,"n_rows":21,"n_cols":10,"rows_kept":21,"cut":false,"hidden":false,"merged":[[8,9,9,10],[14,3,15,3],[14,1,15,1],[19,1,20,1],[19,3,20,3],[11,3,12,3],[11,1,12,1],[8,3,9,3],[8,1,9,1]]}
[null,"Convertisseur d'unités de combustible"]
[]
[null,"Données d'entrée"]
[]
[null,"Type de combustible",null,"Residual oil (HFO)",null,"Du tableau dans la fiche technique de carburant de soutien (fuel data - heating values)"]
[null,"Valeur Calorifique: Standard or User Defined?",null,"Standard"]
[null,"Valeur Calorifique Inférieure (LHV) ou Supérieure (HHV)?",null,"HHV"]
[]
[null,"Entrée manuel (user defined) pour LHV ou HHV",null,null,null,"MJ","(Monnaie)",null,null,"* Veuillez noter que les prix et les valeurs de chauffage des combustibles solides ne doivent être exprimés que par unité de masse"]
[null,null,null,null,null,"kg","(Unités de volume ou masse)"]
[]
[null,"Valeur calorifique sélectionnée",null,{"$f":"+IF(D6=\"User Defined\",$D$9,INDEX('Fuel Data - heating values'!$F$5:$L$85,MATCH($D$5,'Fuel Data - heating values'!$F$5:$F$85,0),MATCH('INPUT and OUTPUT'!$D$7,'Fuel Data - heating values'!$F$5:$L$5,0)))","v":11.630662274014229},null,{"$f":"+IF(D6=\"User Defined\",$F$9,INDEX('Fuel Data - heating values'!$A$5:$L$85,MATCH($D$5,'Fuel Data - heating values'!$A$5:$A$85,0),MATCH('INPUT and OUTPUT'!$D$7&\" numerator unit\",'Fuel Data - heating values'!$A$5:$L$5,0)))","v":"MWh"},"(Monnaie)"]
[null,null,null,null,null,{"$f":"+IF(D6=\"User Defined\",$F$10,INDEX('Fuel Data - heating values'!$A$5:$L$85,MATCH($D$5,'Fuel Data - heating values'!$A$5:$A$85,0),MATCH('INPUT and OUTPUT'!$D$7&\" denominator unit\",'Fuel Data - heating values'!$A$5:$L$5,0)))","v":"m3"},"(Unités de volume ou masse)"]
[]
[null,"Prix du combustible d'entrée",null,null,null,"USD","(Monnaie)"]
[null,null,null,null,null,"Metric Tonne","(Unités d'énergie, volume ou masse)"]
[]
[null,"Sorties"]
[]
[null,"Prix du combustible de sortie",null,{"$f":"+IFERROR($D$15*INDEX('Unit conversion calculations'!$B$62:$Q$77,MATCH($F$21,'Unit conversion calculations'!$B$62:$B$77,0),MATCH('INPUT and OUTPUT'!$F$16,'Unit conversion calculations'!$B$62:$Q$62,0)),\"Error please review Inputs\")","v":0},null,{"$f":"+F15","v":"USD"},"(Monnaie)"]
[null,null,null,null,null,"MWh","(Unités d'énergie, volume ou masse)"]

{"sheet":"Fuel Data - heating values","index":3,"n_rows":85,"n_cols":13,"rows_kept":85,"cut":false,"hidden":false,"merged":[]}
["Specifications of Fuels"]
["SOURCE: GREET Transportation Fuel Cycle Analysis Model, GREET 1.8b, developed by Argonne National Laboratory. https://greet.es.anl.gov/"]
[]
["Fuel","Density","LHV","HHV"]
[null,null,null,null,null,null,"LHV","LHV numerator unit","LHV denominator unit","HHV","HHV numerator unit","HHV denominator unit","Density"]
["Liquid Fuels:","grams/gal","Btu/gal","Btu/gal",null,null,"MWh/m3",null,null,"MWh/m3",null,null,"g/m3"]
["Acetone",2964,83127,89511,null,{"$f":"A7","v":"Acetone"},{"$f":"+C7*'Unit conversion calculations'!$D$6*'Unit conversion calculations'!$E$12","v":6.440757197068689},"MWh","m3",{"$f":"+D7*'Unit conversion calculations'!$D$6*'Unit conversion calculations'!$E$12","v":6.935395448732848},"MWh","m3",{"$f":"+B7*'Unit conversion calculations'!$E$12","v":783005.9631895565}]
["Bitumen",3839.6821254480283,152370.90134048002,162963.53084543315,null,"Bitumen",{"$f":"+C8*'Unit conversion calculations'!$D$6*'Unit conversion calculations'!$E$12","v":11.805839010580675},"MWh","m3",{"$f":"+D8*'Unit conversion calculations'!$D$6*'Unit conversion calculations'!$E$12","v":12.626565786717299},"MWh","m3",{"$f":"+B8*'Unit conversion calculations'!$E$12","v":1014336.7074825091}]
["Bunker fuel for ocean tanker (HFO)",3752,140352.52220119376,150110,null,"Bunker fuel for ocean tanker (HFO)",{"$f":"+C9*'Unit conversion calculations'!$D$6*'Unit conversion calculations'!$E$12","v":10.874643828047224},"MWh","m3",{"$f":"+D9*'Unit conversion calculations'!$D$6*'Unit conversion calculations'!$E$12","v":11.630662274014229},"MWh","m3",{"$f":"+B9*'Unit conversion calculations'!$E$12","v":991173.54044777877}]
["Butane",2213,94970,103220,null,"Butane",{"$f":"+C10*'Unit conversion calculations'!$D$6*'Unit conversion calculations'!$E$12","v":7.358363840937522},"MWh","m3",{"$f":"+D10*'Unit conversion calculations'!$D$6*'Unit conversion calculations'!$E$12","v":7.9975815063869744},"MWh","m3",{"$f":"+B10*'Unit conversion calculations'!$E$12","v":584612.75186858594}]
["Butanol",3065,99837,108458,null,"Butanol",{"$f":"+C11*'Unit conversion calculations'!$D$6*'Unit conversion calculations'!$E$12","v":7.7354635230881259},"MWh","m3",{"$f":"+D11*'Unit conversion calculations'!$D$6*'Unit conversion calculations'!$E$12","v":8.4034266132505184},"MWh","m3",{"$f":"+B11*'Unit conversion calculations'!$E$12","v":809687.34047772968}]
["CA gasoline",2835.5620000000004,112193.52,120438.62000000001,null,"CA gasoline",{"$f":"+C12*'Unit conversion calculations'!$D$6*'Unit conversion calculations'!$E$12","v":8.6928581736917003},"MWh","m3",{"$f":"+D12*'Unit conversion calculations'!$D$6*'Unit conversion calculations'!$E$12","v":9.3316961825883418},"MWh","m3",{"$f":"+B12*'Unit conversion calculations'!$E$12","v":749076.23312878062}]
["Conventional Jet Fuel",3035.8996219999995,124307.03423937227,132948.69438683367,null,"Conventional Jet Fuel",{"$f":"+C13*'Unit conversion calculations'!$D$6*'Unit conversion calculations'!$E$12","v":9.6314245121741529},"MWh","m3",{"$f":"+D13*'Unit conversion calculations'!$D$6*'Unit conversion calculations'!$E$12","v":10.300988369758135},"MWh","m3",{"$f":"+B13*'Unit conversion calculations'!$E$12","v":801999.83389707154}]
["Crude oil",3205,129670,138350,null,"Crude oil",{"$f":"+C14*'Unit conversion calculations'!$D$6*'Unit conversion calculations'!$E$12","v":10.046952082282495},"MWh","m3",{"$f":"+D14*'Unit conversion calculations'!$D$6*'Unit conversion calculations'!$E$12","v":10.719486547264465},"MWh","m3",{"$f":"+B14*'Unit conversion calculations'!$E$12","v":846671.42780787067}]
["Diesel for non-road engines",3167,128450,137380,null,"Diesel for non-road engines",{"$f":"+C15*'Unit conversion calculations'!$D$6*'Unit conversion calculations'!$E$12","v":9.9524253487251215},"MWh","m3",{"$f":"+D15*'Unit conversion calculations'!$D$6*'Unit conversion calculations'!$E$12","v":10.644330045993438},"MWh","m3",{"$f":"+B15*'Unit conversion calculations'!$E$12","v":836632.88981826103}]
["Dilbit (After Recovery)",3839.6821254480283,152370.90134048002,162963.53084543315,null,"Dilbit (After Recovery)",{"$f":"+C16*'Unit conversion calculations'!$D$6*'Unit conversion calculations'!$E$12","v":11.805839010580675},"MWh","m3",{"$f":"+D16*'Unit conversion calculations'!$D$6*'Unit conversion calculations'!$E$12","v":12.626565786717299},"MWh","m3",{"$f":"+B16*'Unit conversion calculations'!$E$12","v":1014336.7074825091}]
["Dilbit (Before Recovery)",3500.47748781362,145194.18901496602,155287.90268980322,null,"Dilbit (Before Recovery)",{"$f":"+C17*'Unit conversion calculations'!$D$6*'Unit conversion calculations'!$E$12","v":11.249780671390692},"MWh","m3",{"$f":"+D17*'Unit conversion calculations'!$D$6*'Unit conversion calculations'!$E$12","v":12.031850985444589},"MWh","m3",{"$f":"+B17*'Unit conversion calculations'!$E$12","v":924728.32218922488}]
["Diluent",2709,128448.52692210001,137378.10365999999,null,"Diluent",{"$f":"+C18*'Unit conversion calculations'!$D$6*'Unit conversion calculations'!$E$12","v":9.9523112132807245},"MWh","m3",{"$f":"+D18*'Unit conversion calculations'!$D$6*'Unit conversion calculations'!$E$12","v":10.644183115808261},"MWh","m3",{"$f":"+B18*'Unit conversion calculations'!$E$12","v":715642.0898382283}]
["Dimethoxy methane (DMM)",3255,72200,79196.89540113158,null,"Dimethoxy methane (DMM)",{"$f":"+C19*'Unit conversion calculations'!$D$6*'Unit conversion calculations'!$E$12","v":5.5941230842970322},"MWh","m3",{"$f":"+D19*'Unit conversion calculations'!$D$6*'Unit conversion calculations'!$E$12","v":6.1362490411098003},"MWh","m3",{"$f":"+B19*'Unit conversion calculations'!$E$12","v":859880.03042577824}]
["Dimethyl ether (DME)",2518,68930,75610,null,"Dimethyl ether (DME)",{"$f":"+C20*'Unit conversion calculations'!$D$6*'Unit conversion calculations'!$E$12","v":5.340760445991612},"MWh","m3",{"$f":"+D20*'Unit conversion calculations'!$D$6*'Unit conversion calculations'!$E$12","v":5.8583330526828048},"MWh","m3",{"$f":"+B20*'Unit conversion calculations'!$E$12","v":665185.2278378217}]
["E-Diesel Additives",2819,116090,124340,null,"E-Diesel Additives",{"$f":"+C21*'Unit conversion calculations'!$D$6*'Unit conversion calculations'!$E$12","v":8.994761064488122},"MWh","m3",{"$f":"+D21*'Unit conversion calculations'!$D$6*'Unit conversion calculations'!$E$12","v":9.6339787299375743},"MWh","m3",{"$f":"+B21*'Unit conversion calculations'!$E$12","v":744701.01559762482}]
["Ethanol",2988,76330,84530,null,"Ethanol",{"$f":"+C22*'Unit conversion calculations'!$D$6*'Unit conversion calculations'!$E$12","v":5.9141193216674859},"MWh","m3",{"$f":"+D22*'Unit conversion calculations'!$D$6*'Unit conversion calculations'!$E$12","v":6.5494629406596685},"MWh","m3",{"$f":"+B22*'Unit conversion calculations'!$E$12","v":789346.09244615212}]
["Ethyl tertiary butyl ether (ETBE)",2810,96720,104530,null,"Ethyl tertiary butyl ether (ETBE)",{"$f":"+C23*'Unit conversion calculations'!$D$6*'Unit conversion calculations'!$E$12","v":7.4939554669419515},"MWh","m3",{"$f":"+D23*'Unit conversion calculations'!$D$6*'Unit conversion calculations'!$E$12","v":8.0990815235674329},"MWh","m3",{"$f":"+B23*'Unit conversion calculations'!$E$12","v":742323.46712640149}]
["Fischer-Tropsch diesel (FTD)",3017,123670,130030,null,"Fischer-Tropsch diesel (FTD)",{"$f":"+C24*'Unit conversion calculations'!$D$6*'Unit conversion calculations'!$E$12","v":9.5820665074101647},"MWh","m3",{"$f":"+D24*'Unit conversion calculations'!$D$6*'Unit conversion calculations'!$E$12","v":10.074845216774834},"MWh","m3",{"$f":"+B24*'Unit conversion calculations'!$E$12","v":797007.08196453855}]
["Gasoline",2835.5620000000004,112193.52,120438.62000000001,null,"Gasoline",{"$f":"+C25*'Unit conversion calculations'!$D$6*'Unit conversion calculations'!$E$12","v":8.6928581736917003},"MWh","m3",{"$f":"+D25*'Unit conversion calculations'!$D$6*'Unit conversion calculations'!$E$12","v":9.3316961825883418},"MWh","m3",{"$f":"+B25*'Unit conversion calculations'!$E$12","v":749076.23312878062}]
["Gasoline blendstock",2819,116090,124340,null,"Gasoline blendstock",{"$f":"+C26*'Unit conversion calculations'!$D$6*'Unit conversion calculations'!$E$12","v":8.994761064488122},"MWh","m3",{"$f":"+D26*'Unit conversion calculations'!$D$6*'Unit conversion calculations'!$E$12","v":9.6339787299375743},"MWh","m3",{"$f":"+B26*'Unit conversion calculations'!$E$12","v":744701.01559762482}]
["High Octane Fuel (E25)",2861.25,106150,114387.5,null,"High Octane Fuel (E25)",{"$f":"+C27*'Unit conversion calculations'!$D$6*'Unit conversion calculations'!$E$12","v":8.2246006287829623},"MWh","m3",{"$f":"+D27*'Unit conversion calculations'!$D$6*'Unit conversion calculations'!$E$12","v":8.8628497826180972},"MWh","m3",{"$f":"+B27*'Unit conversion calculations'!$E$12","v":755862.28480975667}]
["High Octane Fuel (E40)",2886.6,100186,108416,null,"High Octane Fuel (E40)",{"$f":"+C28*'Unit conversion calculations'!$D$6*'Unit conversion calculations'!$E$12","v":7.7625043673598668},"MWh","m3",{"$f":"+D28*'Unit conversion calculations'!$D$6*'Unit conversion calculations'!$E$12","v":8.4001724142264127},"MWh","m3",{"$f":"+B28*'Unit conversion calculations'!$E$12","v":762559.04633703572}]
["Isobutane",2118,90060,98560,null,"Isobutane",{"$f":"+C29*'Unit conversion calculations'!$D$6*'Unit conversion calculations'!$E$12","v":6.9779324788336661},"MWh","m3",{"$f":"+D29*'Unit conversion calculations'!$D$6*'Unit conversion calculations'!$E$12","v":7.6365203765694654},"MWh","m3",{"$f":"+B29*'Unit conversion calculations'!$E$12","v":559516.40689456172}]
["Isobutylene",2253,95720,103010,null,"Isobutylene",{"$f":"+C30*'Unit conversion calculations'!$D$6*'Unit conversion calculations'!$E$12","v":7.4164745377965628},"MWh","m3",{"$f":"+D30*'Unit conversion calculations'!$D$6*'Unit conversion calculations'!$E$12","v":7.9813105112664431},"MWh","m3",{"$f":"+B30*'Unit conversion calculations'!$E$12","v":595179.6339629119}]
["Liquefied natural gas (LNG)",1621,74720,84820,null,"Liquefied natural gas (LNG)",{"$f":"+C31*'Unit conversion calculations'!$D$6*'Unit conversion calculations'!$E$12","v":5.7893750257434107},"MWh","m3",{"$f":"+D31*'Unit conversion calculations'!$D$6*'Unit conversion calculations'!$E$12","v":6.571932410111831},"MWh","m3",{"$f":"+B31*'Unit conversion calculations'!$E$12","v":428222.89687256113}]
["Liquefied petroleum gas (LPG)",1923,84950,91410,null,"Liquefied petroleum gas (LPG)",{"$f":"+C32*'Unit conversion calculations'!$D$6*'Unit conversion calculations'!$E$12","v":6.582004930900732},"MWh","m3",{"$f":"+D32*'Unit conversion calculations'!$D$6*'Unit conversion calculations'!$E$12","v":7.0825317331799393},"MWh","m3",{"$f":"+B32*'Unit conversion calculations'!$E$12","v":508002.85668472241}]
["Liquid hydrogen",268,30500,36020,null,"Liquid hydrogen",{"$f":"+C33*'Unit conversion calculations'!$D$6*'Unit conversion calculations'!$E$12","v":2.3631683389343414},"MWh","m3",{"$f":"+D33*'Unit conversion calculations'!$D$6*'Unit conversion calculations'!$E$12","v":2.7908630678168849},"MWh","m3",{"$f":"+B33*'Unit conversion calculations'!$E$12","v":70798.110031984193}]
["Low-sulfur diesel",3206,129487.84757606639,138490,null,"Low-sulfur diesel",{"$f":"+C34*'Unit conversion calculations'!$D$6*'Unit conversion calculations'!$E$12","v":10.032838743230034},"MWh","m3",{"$f":"+D34*'Unit conversion calculations'!$D$6*'Unit conversion calculations'!$E$12","v":10.730333877344819},"MWh","m3",{"$f":"+B34*'Unit conversion calculations'!$E$12","v":846935.59986022883}]
["Methanol",3006,57250,65200,null,"Methanol",{"$f":"+C35*'Unit conversion calculations'!$D$6*'Unit conversion calculations'!$E$12","v":4.4357831935734771},"MWh","m3",{"$f":"+D35*'Unit conversion calculations'!$D$6*'Unit conversion calculations'!$E$12","v":5.0517565802793136},"MWh","m3",{"$f":"+B35*'Unit conversion calculations'!$E$12","v":794101.1893885989}]
["Methyl ester (biodiesel, BD)",3361,119550,127960,null,"Methyl ester (biodiesel, BD)",{"$f":"+C36*'Unit conversion calculations'!$D$6*'Unit conversion calculations'!$E$12","v":9.2628450793311661},"MWh","m3",{"$f":"+D36*'Unit conversion calculations'!$D$6*'Unit conversion calculations'!$E$12","v":9.9144596934438809},"MWh","m3",{"$f":"+B36*'Unit conversion calculations'!$E$12","v":887882.26797574211}]
["Methyl tertiary butyl ether (MTBE)",2811,93540,101130,null,"Methyl tertiary butyl ether (MTBE)",{"$f":"+C37*'Unit conversion calculations'!$D$6*'Unit conversion calculations'!$E$12","v":7.2475661122596167},"MWh","m3",{"$f":"+D37*'Unit conversion calculations'!$D$6*'Unit conversion calculations'!$E$12","v":7.8356463644731136},"MWh","m3",{"$f":"+B37*'Unit conversion calculations'!$E$12","v":742587.63917875965}]
["Natural gas liquids",2532,83686.11202275462,90050,null,"Natural gas liquids",{"$f":"+C38*'Unit conversion calculations'!$D$6*'Unit conversion calculations'!$E$12","v":6.4840777160880743},"MWh","m3",{"$f":"+D38*'Unit conversion calculations'!$D$6*'Unit conversion calculations'!$E$12","v":6.9771576695422119},"MWh","m3",{"$f":"+B38*'Unit conversion calculations'!$E$12","v":668883.63657083572}]
["NG-based FT naphtha",2651,111520,119740,null,{"$f":"A39","v":"NG-based FT naphtha"},{"$f":"+C39*'Unit conversion calculations'!$D$6*'Unit conversion calculations'!$E$12","v":8.6406732182936974},"MWh","m3",{"$f":"+D39*'Unit conversion calculations'!$D$6*'Unit conversion calculations'!$E$12","v":9.2775664558687883},"MWh","m3",{"$f":"+B39*'Unit conversion calculations'!$E$12","v":700320.11080145556}]
["n-Hexane",2478.6999999999998,105124.8,112166.3,null,"n-Hexane",{"$f":"+C40*'Unit conversion calculations'!$D$6*'Unit conversion calculations'!$E$12","v":8.14516718022311},"MWh","m3",{"$f":"+D40*'Unit conversion calculations'!$D$6*'Unit conversion calculations'!$E$12","v":8.690749142800362},"MWh","m3",{"$f":"+B40*'Unit conversion calculations'!$E$12","v":654803.26618014637}]
["Petroleum naphtha",2745,116920,125080,null,"Petroleum naphtha",{"$f":"+C41*'Unit conversion calculations'!$D$6*'Unit conversion calculations'!$E$12","v":9.059070235678794},"MWh","m3",{"$f":"+D41*'Unit conversion calculations'!$D$6*'Unit conversion calculations'!$E$12","v":9.6913146175051619},"MWh","m3",{"$f":"+B41*'Unit conversion calculations'!$E$12","v":725152.28372312174}]
["Propane",1920,84250,91420,null,"Propane",{"$f":"+C42*'Unit conversion calculations'!$D$6*'Unit conversion calculations'!$E$12","v":6.5277682804989601},"MWh","m3",{"$f":"+D42*'Unit conversion calculations'!$D$6*'Unit conversion calculations'!$E$12","v":7.0833065424713935},"MWh","m3",{"$f":"+B42*'Unit conversion calculations'!$E$12","v":507210.34052764799}]
["Renewable Diesel I (SuperCetane)",2835,117059,125293.76528649101,null,"Renewable Diesel I (SuperCetane)",{"$f":"+C43*'Unit conversion calculations'!$D$6*'Unit conversion calculations'!$E$12","v":9.0698400848300036},"MWh","m3",{"$f":"+D43*'Unit conversion calculations'!$D$6*'Unit conversion calculations'!$E$12","v":9.7078773505215157},"MWh","m3",{"$f":"+B43*'Unit conversion calculations'!$E$12","v":748927.76843535516}]
["Renewable Diesel II (UOP-HDO)",2948,122887,130817,null,"Renewable Diesel II (UOP-HDO)",{"$f":"+C44*'Unit conversion calculations'!$D$6*'Unit conversion calculations'!$E$12","v":9.5213989398893251},"MWh","m3",{"$f":"+D44*'Unit conversion calculations'!$D$6*'Unit conversion calculations'!$E$12","v":10.135822708012254},"MWh","m3",{"$f":"+B44*'Unit conversion calculations'!$E$12","v":778779.21035182616}]
["Renewable Diesel III (PNNL-HTL)",3003.2639480974099,123542.426446789,133070.13702382601,null,"Renewable Diesel III (PNNL-HTL)",{"$f":"+C45*'Unit conversion calculations'!$D$6*'Unit conversion calculations'!$E$12","v":9.5721819899729983},"MWh","m3",{"$f":"+D45*'Unit conversion calculations'!$D$6*'Unit conversion calculations'!$E$12","v":10.31039785811017},"MWh","m3",{"$f":"+B45*'Unit conversion calculations'!$E$12","v":793378.40094213316}]
["Renewable Gasoline",2830,115983,124230,null,"Renewable Gasoline",{"$f":"+C46*'Unit conversion calculations'!$D$6*'Unit conversion calculations'!$E$12","v":8.9864706050695649},"MWh","m3",{"$f":"+D46*'Unit conversion calculations'!$D$6*'Unit conversion calculations'!$E$12","v":9.6254558277315816},"MWh","m3",{"$f":"+B46*'Unit conversion calculations'!$E$12","v":747606.90817356447}]
["Renewable Gasoline (IDL)",2654.6482049815622,111560,119492.50148728694,null,"Renewable Gasoline (IDL)",{"$f":"+C47*'Unit conversion calculations'!$D$6*'Unit conversion calculations'!$E$12","v":8.6437724554595139},"MWh","m3",{"$f":"+D47*'Unit conversion calculations'!$D$6*'Unit conversion calculations'!$E$12","v":9.2583900411416789},"MWh","m3",{"$f":"+B47*'Unit conversion calculations'!$E$12","v":701283.86459885817}]
["Residual oil (HFO)",3752,140352.52220119376,150110,null,"Residual oil (HFO)",{"$f":"+C48*'Unit conversion calculations'!$D$6*'Unit conversion calculations'!$E$12","v":10.874643828047224},"MWh","m3",{"$f":"+D48*'Unit conversion calculations'!$D$6*'Unit conversion calculations'!$E$12","v":11.630662274014229},"MWh","m3",{"$f":"+B48*'Unit conversion calculations'!$E$12","v":991173.54044777877}]
["Shale Oil (Bakken)",3087.2372132564833,125600.90733399388,134008.52571649614,null,"Shale Oil (Bakken)",{"$f":"+C49*'Unit conversion calculations'!$D$6*'Unit conversion calculations'!$E$12","v":9.7316750017416549},"MWh","m3",{"$f":"+D49*'Unit conversion calculations'!$D$6*'Unit conversion calculations'!$E$12","v":10.383105085917776},"MWh","m3",{"$f":"+B49*'Unit conversion calculations'!$E$12","v":815561.79074242071}]
["Shale Oil (Eagle Ford)",2984.0426545960995,122492.60888766299,130692.16040416578,null,"Shale Oil (Eagle Ford)",{"$f":"+C50*'Unit conversion calculations'!$D$6*'Unit conversion calculations'!$E$12","v":9.4908411500587722},"MWh","m3",{"$f":"+D50*'Unit conversion calculations'!$D$6*'Unit conversion calculations'!$E$12","v":10.126150020132885},"MWh","m3",{"$f":"+B50*'Unit conversion calculations'!$E$12","v":788300.67238891369}]
["SPK (FT Jet Fuel/HRJ) ",2865.5561269999994,119776.6214942081,128103.33335647394,null,"SPK (FT Jet Fuel/HRJ) ",{"$f":"+C51*'Unit conversion calculations'!$D$6*'Unit conversion calculations'!$E$12","v":9.280403923266725},"MWh","m3",{"$f":"+D51*'Unit conversion calculations'!$D$6*'Unit conversion calculations'!$E$12","v":9.9255652950810092},"MWh","m3",{"$f":"+B51*'Unit conversion calculations'!$E$12","v":756999.84321706137}]
["Synthetic crude oil (SCO)",3266,135084.91292306196,144475.84269846199,null,"Synthetic crude oil (SCO)",{"$f":"+C52*'Unit conversion calculations'!$D$6*'Unit conversion calculations'!$E$12","v":10.466504566802705},"MWh","m3",{"$f":"+D52*'Unit conversion calculations'!$D$6*'Unit conversion calculations'!$E$12","v":11.194122531339792},"MWh","m3",{"$f":"+B52*'Unit conversion calculations'!$E$12","v":862785.92300171789}]
["Tertiary amyl methyl ether (TAME)",2913,100480,108570,null,"Tertiary amyl methyl ether (TAME)",{"$f":"+C53*'Unit conversion calculations'!$D$6*'Unit conversion calculations'!$E$12","v":7.7852837605286114},"MWh","m3",{"$f":"+D53*'Unit conversion calculations'!$D$6*'Unit conversion calculations'!$E$12","v":8.4121044773148022},"MWh","m3",{"$f":"+B53*'Unit conversion calculations'!$E$12","v":769533.18851929088}]
["U.S. conventional diesel",3167,128450,137380,null,"U.S. conventional diesel",{"$f":"+C54*'Unit conversion calculations'!$D$6*'Unit conversion calculations'!$E$12","v":9.9524253487251215},"MWh","m3",{"$f":"+D54*'Unit conversion calculations'!$D$6*'Unit conversion calculations'!$E$12","v":10.644330045993438},"MWh","m3",{"$f":"+B54*'Unit conversion calculations'!$E$12","v":836632.88981826103}]
["ULS Jet Fuel",2998.0455119999997,123041.23110601204,131594.89429852215,null,"ULS Jet Fuel",{"$f":"+C55*'Unit conversion calculations'!$D$6*'Unit conversion calculations'!$E$12","v":9.5333489092862589},"MWh","m3",{"$f":"+D55*'Unit conversion calculations'!$D$6*'Unit conversion calculations'!$E$12","v":10.196094681038652},"MWh","m3",{"$f":"+B55*'Unit conversion calculations'!$E$12","v":791999.83596818044}]
["Gaseous Fuels (at 32F and 1atm):","gr/ft3","Btu/ft3","Btu/ft3",null,{"$f":"A56","v":"Gaseous Fuels (at 32F and 1atm):"},"MWh/m3",null,null,"MWh/m3"]
["Gaseous hydrogen",2.5499999999999998,290,343,null,{"$f":"A57","v":"Gaseous hydrogen"},{"$f":"+C57*'Unit conversion calculations'!$D$6*'Unit conversion calculations'!$G$12","v":3.0037311594036968E-3},"MWh","m3",{"$f":"+D57*'Unit conversion calculations'!$D$6*'Unit conversion calculations'!$G$12","v":3.552688923018855E-3},"MWh","m3",{"$f":"+B57*'Unit conversion calculations'!$G$12","v":90.05240013979693}]
["Natural gas",22,983,1089,null,{"$f":"A58","v":"Natural gas"},{"$f":"+C58*'Unit conversion calculations'!$D$6*'Unit conversion calculations'!$G$12","v":1.0181612861013219E-2},"MWh","m3",{"$f":"+D58*'Unit conversion calculations'!$D$6*'Unit conversion calculations'!$G$12","v":1.1279528388243537E-2},"MWh","m3",{"$f":"+B58*'Unit conversion calculations'!$G$12","v":776.92266787275798}]
["Pure Methane",20.303179298999996,962.18504920853229,1068.0254046214709,null,{"$f":"A59","v":"Pure Methane"},{"$f":"+C59*'Unit conversion calculations'!$D$6*'Unit conversion calculations'!$G$12","v":9.9660179773105092E-3},"MWh","m3",{"$f":"+D59*'Unit conversion calculations'!$D$6*'Unit conversion calculations'!$G$12","v":1.1062279954814664E-2},"MWh","m3",{"$f":"+B59*'Unit conversion calculations'!$G$12","v":717.00001033081946}]
["Still gas (in refineries)",20.3,982,1043.738844,null,{"$f":"A60","v":"Still gas (in refineries)"},{"$f":"+C60*'Unit conversion calculations'!$D$6*'Unit conversion calculations'!$G$12","v":1.0171255167360104E-2},"MWh","m3",{"$f":"+D60*'Unit conversion calculations'!$D$6*'Unit conversion calculations'!$G$12","v":1.0810727200009635E-2},"MWh","m3",{"$f":"+B60*'Unit conversion calculations'!$G$12","v":716.88773444622666}]
["Solid Fuels:",null,"Btu/ton","Btu/ton",null,"Solid Fuels:","MWh/ton",null,null,"MWh/ton"]
["Bio-char",null,18916910.5715716,18916910.5715716,null,{"$f":"A62","v":"Bio-char"},{"$f":"+C62*'Unit conversion calculations'!$D$6","v":5.5482773236680982},"MWh","Metric Tonne",{"$f":"+D62*'Unit conversion calculations'!$D$6","v":5.5482773236680982},"MWh","Metric Tonne"]
["Bituminous coal",null,22639319.979813498,23633492.9618803,null,"Bituminous coal",{"$f":"+C63*'Unit conversion calculations'!$D$6","v":6.6400496630793047},"MWh","Metric Tonne",{"$f":"+D63*'Unit conversion calculations'!$D$6","v":6.9316378371278784},"MWh","Metric Tonne"]
["Coal Mix for Electricity Generation",null,19474169.219601419,20673610.116392747,null,"Coal Mix for Electricity Generation",{"$f":"+C64*'Unit conversion calculations'!$D$6","v":5.7117197371945538},"MWh","Metric Tonne",{"$f":"+D64*'Unit conversion calculations'!$D$6","v":6.0635124204431783},"MWh","Metric Tonne"]
["Coking coal",null,24599421.97472629,25679670,null,"Coking coal",{"$f":"+C65*'Unit conversion calculations'!$D$6","v":7.2149421334594583},"MWh","Metric Tonne",{"$f":"+D65*'Unit conversion calculations'!$D$6","v":7.531775878583276},"MWh","Metric Tonne"]
["Convertible municipal solid waste",null,14155275.214870876,16144032.889687445,null,"Convertible municipal solid waste",{"$f":"+C66*'Unit conversion calculations'!$D$6","v":4.1517029003126664},"MWh","Metric Tonne",{"$f":"+D66*'Unit conversion calculations'!$D$6","v":4.7350000020094871},"MWh","Metric Tonne"]
["Corn stover",null,14716000,15774000,null,"Corn stover",{"$f":"+C67*'Unit conversion calculations'!$D$6","v":4.3161619222221894},"MWh","Metric Tonne",{"$f":"+D67*'Unit conversion calculations'!$D$6","v":4.6264703833332979},"MWh","Metric Tonne"]
["Forage sorghum bagasse",null,14409931.248165678,15305245.093897162,null,"Forage sorghum bagasse",{"$f":"+C68*'Unit conversion calculations'!$D$6","v":4.2263928075001607},"MWh","Metric Tonne",{"$f":"+D68*'Unit conversion calculations'!$D$6","v":4.4889858714702982},"MWh","Metric Tonne"]
["Forest residue",null,17289000,17906000,null,"Forest residue",{"$f":"+C69*'Unit conversion calculations'!$D$6","v":5.0708156749999613},"MWh","Metric Tonne",{"$f":"+D69*'Unit conversion calculations'!$D$6","v":5.251780061111071},"MWh","Metric Tonne"]
["Grain sorghum bagasse",null,12781599.343864119,14131556.354955051,null,"Grain sorghum bagasse",{"$f":"+C70*'Unit conversion calculations'!$D$6","v":3.7488075831126957},"MWh","Metric Tonne",{"$f":"+D70*'Unit conversion calculations'!$D$6","v":4.1447462245850764},"MWh","Metric Tonne"]
["Lignite coal",null,10805182.822031699,12992301.9717196,null,"Lignite coal",{"$f":"+C71*'Unit conversion calculations'!$D$6","v":3.1691301073051452},"MWh","Metric Tonne",{"$f":"+D71*'Unit conversion calculations'!$D$6","v":3.8106060785776306},"MWh","Metric Tonne"]
["Miscanthus",null,15342000,16377000,null,"Miscanthus",{"$f":"+C72*'Unit conversion calculations'!$D$6","v":4.4997659833332992},"MWh","Metric Tonne",{"$f":"+D72*'Unit conversion calculations'!$D$6","v":4.8033286083332971},"MWh","Metric Tonne"]
["Municipal solid waste (defined by EISA)",null,11209638.734587256,13583444.58426456,null,"Municipal solid waste (defined by EISA)",{"$f":"+C73*'Unit conversion calculations'!$D$6","v":3.2877559029690433},"MWh","Metric Tonne",{"$f":"+D73*'Unit conversion calculations'!$D$6","v":3.9839865647742529},"MWh","Metric Tonne"]
["Pet Coke",null,26949428.734871496,28595925.1717753,null,"Pet Coke",{"$f":"+C74*'Unit conversion calculations'!$D$6","v":7.904192588413486},"MWh","Metric Tonne",{"$f":"+D74*'Unit conversion calculations'!$D$6","v":8.3871054197561552},"MWh","Metric Tonne"]
["Poplar",null,15929000,17062000,null,"Poplar",{"$f":"+C75*'Unit conversion calculations'!$D$6","v":4.6719314527777422},"MWh","Metric Tonne",{"$f":"+D75*'Unit conversion calculations'!$D$6","v":5.0042372055555173},"MWh","Metric Tonne"]
["Subbituminous coal",null,16085444.010446707,17449319.671483699,null,"Subbituminous coal",{"$f":"+C76*'Unit conversion calculations'!$D$6","v":4.7178160464750656},"MWh","Metric Tonne",{"$f":"+D76*'Unit conversion calculations'!$D$6","v":5.1178369893137088},"MWh","Metric Tonne"]
["Sugarcane bagasse",null,12381771.311916806,14062678,null,"Sugarcane bagasse",{"$f":"+C77*'Unit conversion calculations'!$D$6","v":3.6315391319759716},"MWh","Metric Tonne",{"$f":"+D77*'Unit conversion calculations'!$D$6","v":4.1245443944055245},"MWh","Metric Tonne"]
["Sugarcane straw",null,13454048.892850777,15774000,null,"Sugarcane straw",{"$f":"+C78*'Unit conversion calculations'!$D$6","v":3.9460351679150674},"MWh","Metric Tonne",{"$f":"+D78*'Unit conversion calculations'!$D$6","v":4.6264703833332979},"MWh","Metric Tonne"]
["Sweet sorghum bagasse",null,14409931.248165678,15305245.093897162,null,"Sweet sorghum bagasse",{"$f":"+C79*'Unit conversion calculations'!$D$6","v":4.2263928075001607},"MWh","Metric Tonne",{"$f":"+D79*'Unit conversion calculations'!$D$6","v":4.4889858714702982},"MWh","Metric Tonne"]
["Switchgrass",null,14447000,15583000,null,"Switchgrass",{"$f":"+C80*'Unit conversion calculations'!$D$6","v":4.2372649694444124},"MWh","Metric Tonne",{"$f":"+D80*'Unit conversion calculations'!$D$6","v":4.5704506138888537},"MWh","Metric Tonne"]
["Synthetic coal",null,22639319.979813498,23633492.9618803,null,"Synthetic coal",{"$f":"+C81*'Unit conversion calculations'!$D$6","v":6.6400496630793047},"MWh","Metric Tonne",{"$f":"+D81*'Unit conversion calculations'!$D$6","v":6.9316378371278784},"MWh","Metric Tonne"]
["Tire Derived Fuel",null,26664354.295994278,28293433.886979699,null,"Tire Derived Fuel",{"$f":"+C82*'Unit conversion calculations'!$D$6","v":7.8205810473642403},"MWh","Metric Tonne",{"$f":"+D82*'Unit conversion calculations'!$D$6","v":8.2983855661791743},"MWh","Metric Tonne"]
["Waste coal",null,9945646.340310514,11958783.362163,null,"Waste coal",{"$f":"+C83*'Unit conversion calculations'!$D$6","v":2.9170304448176618},"MWh","Metric Tonne",{"$f":"+D83*'Unit conversion calculations'!$D$6","v":3.5074779412797086},"MWh","Metric Tonne"]
["Willow",null,15396000,16524000,null,"Willow",{"$f":"+C84*'Unit conversion calculations'!$D$6","v":4.5156040333332985},"MWh","Metric Tonne",{"$f":"+D84*'Unit conversion calculations'!$D$6","v":4.8464432999999634},"MWh","Metric Tonne"]
["Yard trimming waste",null,14999999.999999998,null,null,"Yard trimming waste",{"$f":"+C85*'Unit conversion calculations'!$D$6","v":4.3994583333332988},"MWh","Metric Tonne",{"$f":"+D85*'Unit conversion calculations'!$D$6","v":0},"MWh","Metric Tonne"]

{"sheet":"Unit conversion calculations","index":4,"n_rows":77,"n_cols":17,"rows_kept":77,"cut":false,"hidden":false,"merged":[]}
["UNIT CONVERSION DATA"]
[null,null,"Equals:"]
["ENERGY",null,"kWh","MWh","Btu","MMBtu","MJ","kCal"]
["1 unit of:","kWh",1,1E-3,3409.5106405145002,3.4095106405145001E-3,3.6,859.84522785899003]
[null,"MWh",1000,1,3409510.6405145,3.4095106405145001,3600,859845.22785899008]
[null,"Btu",2.9329722222221999E-4,2.9329722222221999E-7,1,9.9999999999999995E-7,1.0558700000000041E-3,0.25219021687206999]
[null,"MMBtu",293.29722222222,0.29329722222221999,1000000,1,1055.8700000000042,252190.21687206998]
[null,"MJ",0.27777777777777779,2.7777777777777778E-4,947.08628903178999,9.4708628903178991E-4,1,238.8458966275]
[null,"kCal",1.1629999999999937E-3,1.1629999999999936E-6,3.9652608749183789,3.9652608749183795E-6,4.1867999999999289E-3,1]
["VOLUME",null,"Equals:"]
[null,null,"m3","Litre","US Gallon","Imperial Gallon","ft3","bbl (oil)"]
["1 unit of:","m3",1,1000,264.17205235814998,219.96924829909,35.314666721488997,{"$f":"TRANSPOSE(1/C17:G17)","v":6.2898105697750699}]
[null,"Litre",1E-3,1,0.26417205235815,0.21996924829909001,3.5314666721489002E-2,6.2898105697750699E-3]
[null,"US Gallon",3.7854117839999776E-3,3.7854117839999772,1,0.83267418462899001,0.13368055555555999,2.3809523049954165E-2]
[null,"Imperial Gallon",4.5460899999999541E-3,4.5460899999999542,1.2009499255048532,1,0.16054365323589001,2.859404493314846E-2]
[null,"ft3",2.8316846591999675E-2,28.316846591999671,7.4805194805192325,6.2288354590429051,1,0.17810760099705872]
[null,"bbl (oil)",0.1589873,{"$f":"+$C$17*D12","v":158.9873},{"$f":"+$C$17*E12","v":42.000001339880896},34.972316870101913,5.6145835124493875,1]
[null,null,"Equals:"]
["MASS",null,"gram","kg","Metric Tonne"]
["1 unit of:","gram",1,1E-3,9.9999999999999995E-7]
[null,"kg",1000,1,1E-3]
[null,"Metric Tonne",1000000,1000,1]
[]
["Merged:",null,"kWh","MWh","Btu","MMBtu","MJ","kCal","m3","Litre","US Gallon","Imperial Gallon","ft3","bbl (oil)","gram","kg","Metric Tonne"]
[null,"kWh",{"$f":"+C4","v":1},{"$f":"+D4","v":1E-3},{"$f":"+E4","v":3409.5106405145002},3.4095106405145001E-3,3.6,859.84522785899003]
[null,"MWh",1000,{"$f":"+D5","v":1},3409510.6405145,3.4095106405145001,3600,859845.22785899008]
[null,"Btu",2.9329722222221999E-4,{"$f":"+D6","v":2.9329722222221999E-7},1,9.9999999999999995E-7,1.0558700000000041E-3,0.25219021687206999]
[null,"MMBtu",293.29722222222,{"$f":"+D7","v":0.29329722222221999},1000000,1,1055.8700000000042,252190.21687206998]
[null,"MJ",0.27777777777777779,{"$f":"+D8","v":2.7777777777777778E-4},947.08628903178999,9.4708628903178991E-4,1,238.8458966275]
[null,"kCal",1.1629999999999937E-3,{"$f":"+D9","v":1.1629999999999936E-6},3.9652608749183789,3.9652608749183795E-6,4.1867999999999289E-3,1]
[null,"m3",null,null,null,null,null,null,{"$f":"+C12","v":1},{"$f":"+D12","v":1000},264.17205235814998,219.96924829909,35.314666721488997,6.2898105697750699]
[null,"Litre",null,null,null,null,null,null,1E-3,1,{"$f":"+E13","v":0.26417205235815},0.21996924829909001,3.5314666721489002E-2,6.2898105697750699E-3]
[null,"US Gallon",null,null,null,null,null,null,3.7854117839999776E-3,3.7854117839999772,1,0.83267418462899001,0.13368055555555999,2.3809523049954165E-2]
[null,"Imperial Gallon",null,null,null,null,null,null,{"$f":"+C15","v":4.5460899999999541E-3},4.5460899999999542,1.2009499255048532,1,0.16054365323589001,2.859404493314846E-2]
[null,"ft3",null,null,null,null,null,null,2.8316846591999675E-2,28.316846591999671,7.4805194805192325,6.2288354590429051,1,0.17810760099705872]
[null,"bbl (oil)",null,null,null,null,null,null,0.1589873,158.9873,42.000001339880896,34.972316870101913,5.6145835124493875,1]
[null,"gram",null,null,null,null,null,null,null,null,null,null,null,null,{"$f":"+C20","v":1},1E-3,9.9999999999999995E-7]
[null,"kg",null,null,null,null,null,null,null,null,null,null,null,null,1000,1,1E-3]
[null,"Metric Tonne",null,null,null,null,null,null,null,null,null,null,null,null,1000000,1000,1]
[]
[]
[null,"Fuel:",{"$f":"+'INPUT and OUTPUT'!$D$5","v":"Residual oil (HFO)"}]
[null,"Density Adjusted rates","kWh","MWh","Btu","MMBtu","MJ","kCal","m3","Litre","US Gallon","Imperial Gallon","ft3","bbl (oil)","gram","kg","Metric Tonne"]
[null,"kWh",{"$f":"+C25","v":1},{"$f":"+D25","v":1E-3},3409.5106405145002,3.4095106405145001E-3,3.6,859.84522785899003]
[null,"MWh",1000,1,3409510.6405145,3.4095106405145001,3600,859845.22785899008]
[null,"Btu",2.9329722222221999E-4,2.9329722222221999E-7,1,9.9999999999999995E-7,1.0558700000000041E-3,0.25219021687206999]
[null,"MMBtu",293.29722222222,0.29329722222221999,1000000,1,1055.8700000000042,252190.21687206998]
[null,"MJ",0.27777777777777779,2.7777777777777778E-4,947.08628903178999,9.4708628903178991E-4,1,238.8458966275]
[null,"kCal",1.1629999999999937E-3,1.1629999999999936E-6,3.9652608749183789,3.9652608749183795E-6,4.1867999999999289E-3,1]
[null,"m3",null,null,null,null,null,null,{"$f":"+I31","v":1},1000,264.17205235814998,219.96924829909,35.314666721488997,6.2898105697750699,{"$f":"+TRANSPOSE(1/I56:N58)","v":991173.54044777888},991.17354044777892,0.99117354044777894]
[null,"Litre",null,null,null,null,null,null,1E-3,1,0.26417205235815,0.21996924829909001,3.5314666721489002E-2,6.2898105697750699E-3,991.17354044777892,0.99117354044777894,9.911735404477789E-4]
[null,"US Gallon",null,null,null,null,null,null,3.7854117839999776E-3,3.7854117839999772,1,0.83267418462899001,0.13368055555555999,2.3809523049954165E-2,3752,3.7520000000000007,3.752000000000001E-3]
[null,"Imperial Gallon",null,null,null,null,null,null,{"$f":"+I34","v":4.5460899999999541E-3},4.5460899999999542,1.2009499255048532,1,0.16054365323589001,2.859404493314846E-2,4505.9641204941981,4.5059641204941983,4.5059641204941983E-3]
[null,"ft3",null,null,null,null,null,null,2.8316846591999675E-2,28.316846591999671,7.4805194805192325,6.2288354590429051,1,0.17810760099705872,28066.909090908935,28.06690909090894,2.8066909090908941E-2]
[null,"bbl (oil)",null,null,null,null,null,null,0.1589873,158.9873,42.000001339880896,34.972316870101913,5.6145835124493875,1,157584.00502723316,157.58400502723316,0.15758400502723316]
[null,"gram",null,null,null,null,null,null,{"$f":"1/INDEX('Fuel Data - heating values'!$A$5:$M$85,MATCH('INPUT and OUTPUT'!$D$5,'Fuel Data - heating values'!$A$5:$A$85,0),13)","v":1.0089050597014865E-6},{"$f":"+$I56*D$12","v":1.0089050597014864E-3},{"$f":"+$I56*E$12","v":2.6652452025586353E-4},2.2192808758768448E-4,3.5629145936981955E-5,6.345821708409957E-6,{"$f":"+O37","v":1},1E-3,9.9999999999999995E-7]
[null,"kg",null,null,null,null,null,null,{"$f":"+I56*C21","v":1.0089050597014864E-3},{"$f":"+$I57*D$12","v":1.0089050597014864},0.26652452025586348,0.22192808758768448,3.5629145936981951E-2,6.3458217084099572E-3,1000,1,1E-3]
[null,"Metric Tonne",null,null,null,null,null,null,{"$f":"+I56*C22","v":1.0089050597014864},1008.9050597014864,266.52452025586348,221.92808758768447,35.629145936981949,6.3458217084099573,1000000,1000,1]
[]
[]
[null,"Using:",{"$f":"+'INPUT and OUTPUT'!$D$7","v":"HHV"}]
[null,"Aggregate Conversion Factor (taking density and heating value into account)","kWh","MWh","Btu","MMBtu","MJ","kCal","m3","Litre","US Gallon","Imperial Gallon","ft3","bbl (oil)","gram","kg","Metric Tonne"]
[null,"kWh",{"$f":"+C44","v":1},{"$f":"+D44","v":1E-3},3409.5106405145002,3.4095106405145001E-3,3.6,859.84522785899003,{"$f":"+(1/'INPUT and OUTPUT'!$D$12)*(1/INDEX('Unit conversion calculations'!$B$43:$Q$58,MATCH('INPUT and OUTPUT'!$F$12,'Unit conversion calculations'!$B$43:$B$58,0),MATCH('Unit conversion calculations'!$B63,'Unit conversion calculations'!$B$43:$Q$43,0)))*INDEX('Unit conversion calculations'!$B$43:$Q$58,MATCH('INPUT and OUTPUT'!$F$13,'Unit conversion calculations'!$B$43:$B$58,0),MATCH('Unit conversion calculations'!I$62,'Unit conversion calculations'!$B$43:$Q$43,0))","v":8.5979626648969678E-5},{"$f":"+(1/'INPUT and OUTPUT'!$D$12)*(1/INDEX('Unit conversion calculations'!$B$43:$Q$58,MATCH('INPUT and OUTPUT'!$F$12,'Unit conversion calculations'!$B$43:$B$58,0),MATCH('Unit conversion calculations'!$B63,'Unit conversion calculations'!$B$43:$Q$43,0)))*INDEX('Unit conversion calculations'!$B$43:$Q$58,MATCH('INPUT and OUTPUT'!$F$13,'Unit conversion calculations'!$B$43:$B$58,0),MATCH('Unit conversion calculations'!J$62,'Unit conversion calculations'!$B$43:$Q$43,0))","v":8.5979626648969673E-2},{"$f":"+(1/'INPUT and OUTPUT'!$D$12)*(1/INDEX('Unit conversion calculations'!$B$43:$Q$58,MATCH('INPUT and OUTPUT'!$F$12,'Unit conversion calculations'!$B$43:$B$58,0),MATCH('Unit conversion calculations'!$B63,'Unit conversion calculations'!$B$43:$Q$43,0)))*INDEX('Unit conversion calculations'!$B$43:$Q$58,MATCH('INPUT and OUTPUT'!$F$13,'Unit conversion calculations'!$B$43:$B$58,0),MATCH('Unit conversion calculations'!K$62,'Unit conversion calculations'!$B$43:$Q$43,0))","v":2.2713414432845806E-2},{"$f":"+(1/'INPUT and OUTPUT'!$D$12)*(1/INDEX('Unit conversion calculations'!$B$43:$Q$58,MATCH('INPUT and OUTPUT'!$F$12,'Unit conversion calculations'!$B$43:$B$58,0),MATCH('Unit conversion calculations'!$B63,'Unit conversion calculations'!$B$43:$Q$43,0)))*INDEX('Unit conversion calculations'!$B$43:$Q$58,MATCH('INPUT and OUTPUT'!$F$13,'Unit conversion calculations'!$B$43:$B$58,0),MATCH('Unit conversion calculations'!L$62,'Unit conversion calculations'!$B$43:$Q$43,0))","v":1.8912873843010266E-2},{"$f":"+(1/'INPUT and OUTPUT'!$D$12)*(1/INDEX('Unit conversion calculations'!$B$43:$Q$58,MATCH('INPUT and OUTPUT'!$F$12,'Unit conversion calculations'!$B$43:$B$58,0),MATCH('Unit conversion calculations'!$B63,'Unit conversion calculations'!$B$43:$Q$43,0)))*INDEX('Unit conversion calculations'!$B$43:$Q$58,MATCH('INPUT and OUTPUT'!$F$13,'Unit conversion calculations'!$B$43:$B$58,0),MATCH('Unit conversion calculations'!M$62,'Unit conversion calculations'!$B$43:$Q$43,0))","v":3.036341859946418E-3},{"$f":"+(1/'INPUT and OUTPUT'!$D$12)*(1/INDEX('Unit conversion calculations'!$B$43:$Q$58,MATCH('INPUT and OUTPUT'!$F$12,'Unit conversion calculations'!$B$43:$B$58,0),MATCH('Unit conversion calculations'!$B63,'Unit conversion calculations'!$B$43:$Q$43,0)))*INDEX('Unit conversion calculations'!$B$43:$Q$58,MATCH('INPUT and OUTPUT'!$F$13,'Unit conversion calculations'!$B$43:$B$58,0),MATCH('Unit conversion calculations'!N$62,'Unit conversion calculations'!$B$43:$Q$43,0))","v":5.4079556448200373E-4},{"$f":"+(1/'INPUT and OUTPUT'!$D$12)*(1/INDEX('Unit conversion calculations'!$B$43:$Q$58,MATCH('INPUT and OUTPUT'!$F$12,'Unit conversion calculations'!$B$43:$B$58,0),MATCH('Unit conversion calculations'!$B63,'Unit conversion calculations'!$B$43:$Q$43,0)))*INDEX('Unit conversion calculations'!$B$43:$Q$58,MATCH('INPUT and OUTPUT'!$F$13,'Unit conversion calculations'!$B$43:$B$58,0),MATCH('Unit conversion calculations'!O$62,'Unit conversion calculations'!$B$43:$Q$43,0))","v":85.220730952037471},{"$f":"+(1/'INPUT and OUTPUT'!$D$12)*(1/INDEX('Unit conversion calculations'!$B$43:$Q$58,MATCH('INPUT and OUTPUT'!$F$12,'Unit conversion calculations'!$B$43:$B$58,0),MATCH('Unit conversion calculations'!$B63,'Unit conversion calculations'!$B$43:$Q$43,0)))*INDEX('Unit conversion calculations'!$B$43:$Q$58,MATCH('INPUT and OUTPUT'!$F$13,'Unit conversion calculations'!$B$43:$B$58,0),MATCH('Unit conversion calculations'!P$62,'Unit conversion calculations'!$B$43:$Q$43,0))","v":8.5220730952037471E-2},{"$f":"+(1/'INPUT and OUTPUT'!$D$12)*(1/INDEX('Unit conversion calculations'!$B$43:$Q$58,MATCH('INPUT and OUTPUT'!$F$12,'Unit conversion calculations'!$B$43:$B$58,0),MATCH('Unit conversion calculations'!$B63,'Unit conversion calculations'!$B$43:$Q$43,0)))*INDEX('Unit conversion calculations'!$B$43:$Q$58,MATCH('INPUT and OUTPUT'!$F$13,'Unit conversion calculations'!$B$43:$B$58,0),MATCH('Unit conversion calculations'!Q$62,'Unit conversion calculations'!$B$43:$Q$43,0))","v":8.5220730952037478E-5}]
[null,"MWh",{"$f":"+C45","v":1000},1,3409510.6405145,3.4095106405145001,3600,859845.22785899008,{"$f":"+(1/'INPUT and OUTPUT'!$D$12)*(1/INDEX('Unit conversion calculations'!$B$43:$Q$58,MATCH('INPUT and OUTPUT'!$F$12,'Unit conversion calculations'!$B$43:$B$58,0),MATCH('Unit conversion calculations'!$B64,'Unit conversion calculations'!$B$43:$Q$43,0)))*INDEX('Unit conversion calculations'!$B$43:$Q$58,MATCH('INPUT and OUTPUT'!$F$13,'Unit conversion calculations'!$B$43:$B$58,0),MATCH('Unit conversion calculations'!I$62,'Unit conversion calculations'!$B$43:$Q$43,0))","v":8.5979626648969673E-2},{"$f":"+(1/'INPUT and OUTPUT'!$D$12)*(1/INDEX('Unit conversion calculations'!$B$43:$Q$58,MATCH('INPUT and OUTPUT'!$F$12,'Unit conversion calculations'!$B$43:$B$58,0),MATCH('Unit conversion calculations'!$B64,'Unit conversion calculations'!$B$43:$Q$43,0)))*INDEX('Unit conversion calculations'!$B$43:$Q$58,MATCH('INPUT and OUTPUT'!$F$13,'Unit conversion calculations'!$B$43:$B$58,0),MATCH('Unit conversion calculations'!J$62,'Unit conversion calculations'!$B$43:$Q$43,0))","v":85.979626648969671},{"$f":"+(1/'INPUT and OUTPUT'!$D$12)*(1/INDEX('Unit conversion calculations'!$B$43:$Q$58,MATCH('INPUT and OUTPUT'!$F$12,'Unit conversion calculations'!$B$43:$B$58,0),MATCH('Unit conversion calculations'!$B64,'Unit conversion calculations'!$B$43:$Q$43,0)))*INDEX('Unit conversion calculations'!$B$43:$Q$58,MATCH('INPUT and OUTPUT'!$F$13,'Unit conversion calculations'!$B$43:$B$58,0),MATCH('Unit conversion calculations'!K$62,'Unit conversion calculations'!$B$43:$Q$43,0))","v":22.713414432845806},{"$f":"+(1/'INPUT and OUTPUT'!$D$12)*(1/INDEX('Unit conversion calculations'!$B$43:$Q$58,MATCH('INPUT and OUTPUT'!$F$12,'Unit conversion calculations'!$B$43:$B$58,0),MATCH('Unit conversion calculations'!$B64,'Unit conversion calculations'!$B$43:$Q$43,0)))*INDEX('Unit conversion calculations'!$B$43:$Q$58,MATCH('INPUT and OUTPUT'!$F$13,'Unit conversion calculations'!$B$43:$B$58,0),MATCH('Unit conversion calculations'!L$62,'Unit conversion calculations'!$B$43:$Q$43,0))","v":18.912873843010264},{"$f":"+(1/'INPUT and OUTPUT'!$D$12)*(1/INDEX('Unit conversion calculations'!$B$43:$Q$58,MATCH('INPUT and OUTPUT'!$F$12,'Unit conversion calculations'!$B$43:$B$58,0),MATCH('Unit conversion calculations'!$B64,'Unit conversion calculations'!$B$43:$Q$43,0)))*INDEX('Unit conversion calculations'!$B$43:$Q$58,MATCH('INPUT and OUTPUT'!$F$13,'Unit conversion calculations'!$B$43:$B$58,0),MATCH('Unit conversion calculations'!M$62,'Unit conversion calculations'!$B$43:$Q$43,0))","v":3.0363418599464178},{"$f":"+(1/'INPUT and OUTPUT'!$D$12)*(1/INDEX('Unit conversion calculations'!$B$43:$Q$58,MATCH('INPUT and OUTPUT'!$F$12,'Unit conversion calculations'!$B$43:$B$58,0),MATCH('Unit conversion calculations'!$B64,'Unit conversion calculations'!$B$43:$Q$43,0)))*INDEX('Unit conversion calculations'!$B$43:$Q$58,MATCH('INPUT and OUTPUT'!$F$13,'Unit conversion calculations'!$B$43:$B$58,0),MATCH('Unit conversion calculations'!N$62,'Unit conversion calculations'!$B$43:$Q$43,0))","v":0.54079556448200372},{"$f":"+(1/'INPUT and OUTPUT'!$D$12)*(1/INDEX('Unit conversion calculations'!$B$43:$Q$58,MATCH('INPUT and OUTPUT'!$F$12,'Unit conversion calculations'!$B$43:$B$58,0),MATCH('Unit conversion calculations'!$B64,'Unit conversion calculations'!$B$43:$Q$43,0)))*INDEX('Unit conversion calculations'!$B$43:$Q$58,MATCH('INPUT and OUTPUT'!$F$13,'Unit conversion calculations'!$B$43:$B$58,0),MATCH('Unit conversion calculations'!O$62,'Unit conversion calculations'!$B$43:$Q$43,0))","v":85220.730952037469},{"$f":"+(1/'INPUT and OUTPUT'!$D$12)*(1/INDEX('Unit conversion calculations'!$B$43:$Q$58,MATCH('INPUT and OUTPUT'!$F$12,'Unit conversion calculations'!$B$43:$B$58,0),MATCH('Unit conversion calculations'!$B64,'Unit conversion calculations'!$B$43:$Q$43,0)))*INDEX('Unit conversion calculations'!$B$43:$Q$58,MATCH('INPUT and OUTPUT'!$F$13,'Unit conversion calculations'!$B$43:$B$58,0),MATCH('Unit conversion calculations'!P$62,'Unit conversion calculations'!$B$43:$Q$43,0))","v":85.220730952037471},{"$f":"+(1/'INPUT and OUTPUT'!$D$12)*(1/INDEX('Unit conversion calculations'!$B$43:$Q$58,MATCH('INPUT and OUTPUT'!$F$12,'Unit conversion calculations'!$B$43:$B$58,0),MATCH('Unit conversion calculations'!$B64,'Unit conversion calculations'!$B$43:$Q$43,0)))*INDEX('Unit conversion calculations'!$B$43:$Q$58,MATCH('INPUT and OUTPUT'!$F$13,'Unit conversion calculations'!$B$43:$B$58,0),MATCH('Unit conversion calculations'!Q$62,'Unit conversion calculations'!$B$43:$Q$43,0))","v":8.5220730952037471E-2}]
[null,"Btu",{"$f":"+C46","v":2.9329722222221999E-4},{"$f":"+D46","v":2.9329722222221999E-7},1,9.9999999999999995E-7,1.0558700000000041E-3,0.25219021687206999,{"$f":"+(1/'INPUT and OUTPUT'!$D$12)*(1/INDEX('Unit conversion calculations'!$B$43:$Q$58,MATCH('INPUT and OUTPUT'!$F$12,'Unit conversion calculations'!$B$43:$B$58,0),MATCH('Unit conversion calculations'!$B65,'Unit conversion calculations'!$B$43:$Q$43,0)))*INDEX('Unit conversion calculations'!$B$43:$Q$58,MATCH('INPUT and OUTPUT'!$F$13,'Unit conversion calculations'!$B$43:$B$58,0),MATCH('Unit conversion calculations'!I$62,'Unit conversion calculations'!$B$43:$Q$43,0))","v":2.5217585663846241E-8},{"$f":"+(1/'INPUT and OUTPUT'!$D$12)*(1/INDEX('Unit conversion calculations'!$B$43:$Q$58,MATCH('INPUT and OUTPUT'!$F$12,'Unit conversion calculations'!$B$43:$B$58,0),MATCH('Unit conversion calculations'!$B65,'Unit conversion calculations'!$B$43:$Q$43,0)))*INDEX('Unit conversion calculations'!$B$43:$Q$58,MATCH('INPUT and OUTPUT'!$F$13,'Unit conversion calculations'!$B$43:$B$58,0),MATCH('Unit conversion calculations'!J$62,'Unit conversion calculations'!$B$43:$Q$43,0))","v":2.5217585663846243E-5},{"$f":"+(1/'INPUT and OUTPUT'!$D$12)*(1/INDEX('Unit conversion calculations'!$B$43:$Q$58,MATCH('INPUT and OUTPUT'!$F$12,'Unit conversion calculations'!$B$43:$B$58,0),MATCH('Unit conversion calculations'!$B65,'Unit conversion calculations'!$B$43:$Q$43,0)))*INDEX('Unit conversion calculations'!$B$43:$Q$58,MATCH('INPUT and OUTPUT'!$F$13,'Unit conversion calculations'!$B$43:$B$58,0),MATCH('Unit conversion calculations'!K$62,'Unit conversion calculations'!$B$43:$Q$43,0))","v":6.661781360335722E-6},{"$f":"+(1/'INPUT and OUTPUT'!$D$12)*(1/INDEX('Unit conversion calculations'!$B$43:$Q$58,MATCH('INPUT and OUTPUT'!$F$12,'Unit conversion calculations'!$B$43:$B$58,0),MATCH('Unit conversion calculations'!$B65,'Unit conversion calculations'!$B$43:$Q$43,0)))*INDEX('Unit conversion calculations'!$B$43:$Q$58,MATCH('INPUT and OUTPUT'!$F$13,'Unit conversion calculations'!$B$43:$B$58,0),MATCH('Unit conversion calculations'!L$62,'Unit conversion calculations'!$B$43:$Q$43,0))","v":5.547093362394166E-6},{"$f":"+(1/'INPUT and OUTPUT'!$D$12)*(1/INDEX('Unit conversion calculations'!$B$43:$Q$58,MATCH('INPUT and OUTPUT'!$F$12,'Unit conversion calculations'!$B$43:$B$58,0),MATCH('Unit conversion calculations'!$B65,'Unit conversion calculations'!$B$43:$Q$43,0)))*INDEX('Unit conversion calculations'!$B$43:$Q$58,MATCH('INPUT and OUTPUT'!$F$13,'Unit conversion calculations'!$B$43:$B$58,0),MATCH('Unit conversion calculations'!M$62,'Unit conversion calculations'!$B$43:$Q$43,0))","v":8.905506332393289E-7},{"$f":"+(1/'INPUT and OUTPUT'!$D$12)*(1/INDEX('Unit conversion calculations'!$B$43:$Q$58,MATCH('INPUT and OUTPUT'!$F$12,'Unit conversion calculations'!$B$43:$B$58,0),MATCH('Unit conversion calculations'!$B65,'Unit conversion calculations'!$B$43:$Q$43,0)))*INDEX('Unit conversion calculations'!$B$43:$Q$58,MATCH('INPUT and OUTPUT'!$F$13,'Unit conversion calculations'!$B$43:$B$58,0),MATCH('Unit conversion calculations'!N$62,'Unit conversion calculations'!$B$43:$Q$43,0))","v":1.5861383685266837E-7},{"$f":"+(1/'INPUT and OUTPUT'!$D$12)*(1/INDEX('Unit conversion calculations'!$B$43:$Q$58,MATCH('INPUT and OUTPUT'!$F$12,'Unit conversion calculations'!$B$43:$B$58,0),MATCH('Unit conversion calculations'!$B65,'Unit conversion calculations'!$B$43:$Q$43,0)))*INDEX('Unit conversion calculations'!$B$43:$Q$58,MATCH('INPUT and OUTPUT'!$F$13,'Unit conversion calculations'!$B$43:$B$58,0),MATCH('Unit conversion calculations'!O$62,'Unit conversion calculations'!$B$43:$Q$43,0))","v":2.499500366397963E-2},{"$f":"+(1/'INPUT and OUTPUT'!$D$12)*(1/INDEX('Unit conversion calculations'!$B$43:$Q$58,MATCH('INPUT and OUTPUT'!$F$12,'Unit conversion calculations'!$B$43:$B$58,0),MATCH('Unit conversion calculations'!$B65,'Unit conversion calculations'!$B$43:$Q$43,0)))*INDEX('Unit conversion calculations'!$B$43:$Q$58,MATCH('INPUT and OUTPUT'!$F$13,'Unit conversion calculations'!$B$43:$B$58,0),MATCH('Unit conversion calculations'!P$62,'Unit conversion calculations'!$B$43:$Q$43,0))","v":2.4995003663979632E-5},{"$f":"+(1/'INPUT and OUTPUT'!$D$12)*(1/INDEX('Unit conversion calculations'!$B$43:$Q$58,MATCH('INPUT and OUTPUT'!$F$12,'Unit conversion calculations'!$B$43:$B$58,0),MATCH('Unit conversion calculations'!$B65,'Unit conversion calculations'!$B$43:$Q$43,0)))*INDEX('Unit conversion calculations'!$B$43:$Q$58,MATCH('INPUT and OUTPUT'!$F$13,'Unit conversion calculations'!$B$43:$B$58,0),MATCH('Unit conversion calculations'!Q$62,'Unit conversion calculations'!$B$43:$Q$43,0))","v":2.4995003663979632E-8}]
[null,"MMBtu",{"$f":"+C47","v":293.29722222222},0.29329722222221999,1000000,1,1055.8700000000042,252190.21687206998,{"$f":"+(1/'INPUT and OUTPUT'!$D$12)*(1/INDEX('Unit conversion calculations'!$B$43:$Q$58,MATCH('INPUT and OUTPUT'!$F$12,'Unit conversion calculations'!$B$43:$B$58,0),MATCH('Unit conversion calculations'!$B66,'Unit conversion calculations'!$B$43:$Q$43,0)))*INDEX('Unit conversion calculations'!$B$43:$Q$58,MATCH('INPUT and OUTPUT'!$F$13,'Unit conversion calculations'!$B$43:$B$58,0),MATCH('Unit conversion calculations'!I$62,'Unit conversion calculations'!$B$43:$Q$43,0))","v":2.5217585663846243E-2},{"$f":"+(1/'INPUT and OUTPUT'!$D$12)*(1/INDEX('Unit conversion calculations'!$B$43:$Q$58,MATCH('INPUT and OUTPUT'!$F$12,'Unit conversion calculations'!$B$43:$B$58,0),MATCH('Unit conversion calculations'!$B66,'Unit conversion calculations'!$B$43:$Q$43,0)))*INDEX('Unit conversion calculations'!$B$43:$Q$58,MATCH('INPUT and OUTPUT'!$F$13,'Unit conversion calculations'!$B$43:$B$58,0),MATCH('Unit conversion calculations'!J$62,'Unit conversion calculations'!$B$43:$Q$43,0))","v":25.217585663846243},{"$f":"+(1/'INPUT and OUTPUT'!$D$12)*(1/INDEX('Unit conversion calculations'!$B$43:$Q$58,MATCH('INPUT and OUTPUT'!$F$12,'Unit conversion calculations'!$B$43:$B$58,0),MATCH('Unit conversion calculations'!$B66,'Unit conversion calculations'!$B$43:$Q$43,0)))*INDEX('Unit conversion calculations'!$B$43:$Q$58,MATCH('INPUT and OUTPUT'!$F$13,'Unit conversion calculations'!$B$43:$B$58,0),MATCH('Unit conversion calculations'!K$62,'Unit conversion calculations'!$B$43:$Q$43,0))","v":6.6617813603357217},{"$f":"+(1/'INPUT and OUTPUT'!$D$12)*(1/INDEX('Unit conversion calculations'!$B$43:$Q$58,MATCH('INPUT and OUTPUT'!$F$12,'Unit conversion calculations'!$B$43:$B$58,0),MATCH('Unit conversion calculations'!$B66,'Unit conversion calculations'!$B$43:$Q$43,0)))*INDEX('Unit conversion calculations'!$B$43:$Q$58,MATCH('INPUT and OUTPUT'!$F$13,'Unit conversion calculations'!$B$43:$B$58,0),MATCH('Unit conversion calculations'!L$62,'Unit conversion calculations'!$B$43:$Q$43,0))","v":5.5470933623941665},{"$f":"+(1/'INPUT and OUTPUT'!$D$12)*(1/INDEX('Unit conversion calculations'!$B$43:$Q$58,MATCH('INPUT and OUTPUT'!$F$12,'Unit conversion calculations'!$B$43:$B$58,0),MATCH('Unit conversion calculations'!$B66,'Unit conversion calculations'!$B$43:$Q$43,0)))*INDEX('Unit conversion calculations'!$B$43:$Q$58,MATCH('INPUT and OUTPUT'!$F$13,'Unit conversion calculations'!$B$43:$B$58,0),MATCH('Unit conversion calculations'!M$62,'Unit conversion calculations'!$B$43:$Q$43,0))","v":0.89055063323932893},{"$f":"+(1/'INPUT and OUTPUT'!$D$12)*(1/INDEX('Unit conversion calculations'!$B$43:$Q$58,MATCH('INPUT and OUTPUT'!$F$12,'Unit conversion calculations'!$B$43:$B$58,0),MATCH('Unit conversion calculations'!$B66,'Unit conversion calculations'!$B$43:$Q$43,0)))*INDEX('Unit conversion calculations'!$B$43:$Q$58,MATCH('INPUT and OUTPUT'!$F$13,'Unit conversion calculations'!$B$43:$B$58,0),MATCH('Unit conversion calculations'!N$62,'Unit conversion calculations'!$B$43:$Q$43,0))","v":0.15861383685266836},{"$f":"+(1/'INPUT and OUTPUT'!$D$12)*(1/INDEX('Unit conversion calculations'!$B$43:$Q$58,MATCH('INPUT and OUTPUT'!$F$12,'Unit conversion calculations'!$B$43:$B$58,0),MATCH('Unit conversion calculations'!$B66,'Unit conversion calculations'!$B$43:$Q$43,0)))*INDEX('Unit conversion calculations'!$B$43:$Q$58,MATCH('INPUT and OUTPUT'!$F$13,'Unit conversion calculations'!$B$43:$B$58,0),MATCH('Unit conversion calculations'!O$62,'Unit conversion calculations'!$B$43:$Q$43,0))","v":24995.003663979631},{"$f":"+(1/'INPUT and OUTPUT'!$D$12)*(1/INDEX('Unit conversion calculations'!$B$43:$Q$58,MATCH('INPUT and OUTPUT'!$F$12,'Unit conversion calculations'!$B$43:$B$58,0),MATCH('Unit conversion calculations'!$B66,'Unit conversion calculations'!$B$43:$Q$43,0)))*INDEX('Unit conversion calculations'!$B$43:$Q$58,MATCH('INPUT and OUTPUT'!$F$13,'Unit conversion calculations'!$B$43:$B$58,0),MATCH('Unit conversion calculations'!P$62,'Unit conversion calculations'!$B$43:$Q$43,0))","v":24.995003663979634},{"$f":"+(1/'INPUT and OUTPUT'!$D$12)*(1/INDEX('Unit conversion calculations'!$B$43:$Q$58,MATCH('INPUT and OUTPUT'!$F$12,'Unit conversion calculations'!$B$43:$B$58,0),MATCH('Unit conversion calculations'!$B66,'Unit conversion calculations'!$B$43:$Q$43,0)))*INDEX('Unit conversion calculations'!$B$43:$Q$58,MATCH('INPUT and OUTPUT'!$F$13,'Unit conversion calculations'!$B$43:$B$58,0),MATCH('Unit conversion calculations'!Q$62,'Unit conversion calculations'!$B$43:$Q$43,0))","v":2.4995003663979633E-2}]
[null,"MJ",{"$f":"+C48","v":0.27777777777777779},2.7777777777777778E-4,947.08628903178999,9.4708628903178991E-4,1,238.8458966275,{"$f":"+(1/'INPUT and OUTPUT'!$D$12)*(1/INDEX('Unit conversion calculations'!$B$43:$Q$58,MATCH('INPUT and OUTPUT'!$F$12,'Unit conversion calculations'!$B$43:$B$58,0),MATCH('Unit conversion calculations'!$B67,'Unit conversion calculations'!$B$43:$Q$43,0)))*INDEX('Unit conversion calculations'!$B$43:$Q$58,MATCH('INPUT and OUTPUT'!$F$13,'Unit conversion calculations'!$B$43:$B$58,0),MATCH('Unit conversion calculations'!I$62,'Unit conversion calculations'!$B$43:$Q$43,0))","v":2.3883229624713797E-5},{"$f":"+(1/'INPUT and OUTPUT'!$D$12)*(1/INDEX('Unit conversion calculations'!$B$43:$Q$58,MATCH('INPUT and OUTPUT'!$F$12,'Unit conversion calculations'!$B$43:$B$58,0),MATCH('Unit conversion calculations'!$B67,'Unit conversion calculations'!$B$43:$Q$43,0)))*INDEX('Unit conversion calculations'!$B$43:$Q$58,MATCH('INPUT and OUTPUT'!$F$13,'Unit conversion calculations'!$B$43:$B$58,0),MATCH('Unit conversion calculations'!J$62,'Unit conversion calculations'!$B$43:$Q$43,0))","v":2.3883229624713797E-2},{"$f":"+(1/'INPUT and OUTPUT'!$D$12)*(1/INDEX('Unit conversion calculations'!$B$43:$Q$58,MATCH('INPUT and OUTPUT'!$F$12,'Unit conversion calculations'!$B$43:$B$58,0),MATCH('Unit conversion calculations'!$B67,'Unit conversion calculations'!$B$43:$Q$43,0)))*INDEX('Unit conversion calculations'!$B$43:$Q$58,MATCH('INPUT and OUTPUT'!$F$13,'Unit conversion calculations'!$B$43:$B$58,0),MATCH('Unit conversion calculations'!K$62,'Unit conversion calculations'!$B$43:$Q$43,0))","v":6.3092817869016115E-3},{"$f":"+(1/'INPUT and OUTPUT'!$D$12)*(1/INDEX('Unit conversion calculations'!$B$43:$Q$58,MATCH('INPUT and OUTPUT'!$F$12,'Unit conversion calculations'!$B$43:$B$58,0),MATCH('Unit conversion calculations'!$B67,'Unit conversion calculations'!$B$43:$Q$43,0)))*INDEX('Unit conversion calculations'!$B$43:$Q$58,MATCH('INPUT and OUTPUT'!$F$13,'Unit conversion calculations'!$B$43:$B$58,0),MATCH('Unit conversion calculations'!L$62,'Unit conversion calculations'!$B$43:$Q$43,0))","v":5.2535760675028508E-3},{"$f":"+(1/'INPUT and OUTPUT'!$D$12)*(1/INDEX('Unit conversion calculations'!$B$43:$Q$58,MATCH('INPUT and OUTPUT'!$F$12,'Unit conversion calculations'!$B$43:$B$58,0),MATCH('Unit conversion calculations'!$B67,'Unit conversion calculations'!$B$43:$Q$43,0)))*INDEX('Unit conversion calculations'!$B$43:$Q$58,MATCH('INPUT and OUTPUT'!$F$13,'Unit conversion calculations'!$B$43:$B$58,0),MATCH('Unit conversion calculations'!M$62,'Unit conversion calculations'!$B$43:$Q$43,0))","v":8.434282944295605E-4},{"$f":"+(1/'INPUT and OUTPUT'!$D$12)*(1/INDEX('Unit conversion calculations'!$B$43:$Q$58,MATCH('INPUT and OUTPUT'!$F$12,'Unit conversion calculations'!$B$43:$B$58,0),MATCH('Unit conversion calculations'!$B67,'Unit conversion calculations'!$B$43:$Q$43,0)))*INDEX('Unit conversion calculations'!$B$43:$Q$58,MATCH('INPUT and OUTPUT'!$F$13,'Unit conversion calculations'!$B$43:$B$58,0),MATCH('Unit conversion calculations'!N$62,'Unit conversion calculations'!$B$43:$Q$43,0))","v":1.5022099013388993E-4},{"$f":"+(1/'INPUT and OUTPUT'!$D$12)*(1/INDEX('Unit conversion calculations'!$B$43:$Q$58,MATCH('INPUT and OUTPUT'!$F$12,'Unit conversion calculations'!$B$43:$B$58,0),MATCH('Unit conversion calculations'!$B67,'Unit conversion calculations'!$B$43:$Q$43,0)))*INDEX('Unit conversion calculations'!$B$43:$Q$58,MATCH('INPUT and OUTPUT'!$F$13,'Unit conversion calculations'!$B$43:$B$58,0),MATCH('Unit conversion calculations'!O$62,'Unit conversion calculations'!$B$43:$Q$43,0))","v":23.672425264454851},{"$f":"+(1/'INPUT and OUTPUT'!$D$12)*(1/INDEX('Unit conversion calculations'!$B$43:$Q$58,MATCH('INPUT and OUTPUT'!$F$12,'Unit conversion calculations'!$B$43:$B$58,0),MATCH('Unit conversion calculations'!$B67,'Unit conversion calculations'!$B$43:$Q$43,0)))*INDEX('Unit conversion calculations'!$B$43:$Q$58,MATCH('INPUT and OUTPUT'!$F$13,'Unit conversion calculations'!$B$43:$B$58,0),MATCH('Unit conversion calculations'!P$62,'Unit conversion calculations'!$B$43:$Q$43,0))","v":2.3672425264454851E-2},{"$f":"+(1/'INPUT and OUTPUT'!$D$12)*(1/INDEX('Unit conversion calculations'!$B$43:$Q$58,MATCH('INPUT and OUTPUT'!$F$12,'Unit conversion calculations'!$B$43:$B$58,0),MATCH('Unit conversion calculations'!$B67,'Unit conversion calculations'!$B$43:$Q$43,0)))*INDEX('Unit conversion calculations'!$B$43:$Q$58,MATCH('INPUT and OUTPUT'!$F$13,'Unit conversion calculations'!$B$43:$B$58,0),MATCH('Unit conversion calculations'!Q$62,'Unit conversion calculations'!$B$43:$Q$43,0))","v":2.3672425264454852E-5}]
[null,"kCal",{"$f":"+C49","v":1.1629999999999937E-3},1.1629999999999936E-6,3.9652608749183789,3.9652608749183795E-6,4.1867999999999289E-3,1,{"$f":"+(1/'INPUT and OUTPUT'!$D$12)*(1/INDEX('Unit conversion calculations'!$B$43:$Q$58,MATCH('INPUT and OUTPUT'!$F$12,'Unit conversion calculations'!$B$43:$B$58,0),MATCH('Unit conversion calculations'!$B68,'Unit conversion calculations'!$B$43:$Q$43,0)))*INDEX('Unit conversion calculations'!$B$43:$Q$58,MATCH('INPUT and OUTPUT'!$F$13,'Unit conversion calculations'!$B$43:$B$58,0),MATCH('Unit conversion calculations'!I$62,'Unit conversion calculations'!$B$43:$Q$43,0))","v":9.9994305792751181E-8},{"$f":"+(1/'INPUT and OUTPUT'!$D$12)*(1/INDEX('Unit conversion calculations'!$B$43:$Q$58,MATCH('INPUT and OUTPUT'!$F$12,'Unit conversion calculations'!$B$43:$B$58,0),MATCH('Unit conversion calculations'!$B68,'Unit conversion calculations'!$B$43:$Q$43,0)))*INDEX('Unit conversion calculations'!$B$43:$Q$58,MATCH('INPUT and OUTPUT'!$F$13,'Unit conversion calculations'!$B$43:$B$58,0),MATCH('Unit conversion calculations'!J$62,'Unit conversion calculations'!$B$43:$Q$43,0))","v":9.9994305792751179E-5},{"$f":"+(1/'INPUT and OUTPUT'!$D$12)*(1/INDEX('Unit conversion calculations'!$B$43:$Q$58,MATCH('INPUT and OUTPUT'!$F$12,'Unit conversion calculations'!$B$43:$B$58,0),MATCH('Unit conversion calculations'!$B68,'Unit conversion calculations'!$B$43:$Q$43,0)))*INDEX('Unit conversion calculations'!$B$43:$Q$58,MATCH('INPUT and OUTPUT'!$F$13,'Unit conversion calculations'!$B$43:$B$58,0),MATCH('Unit conversion calculations'!K$62,'Unit conversion calculations'!$B$43:$Q$43,0))","v":2.6415700985399525E-5},{"$f":"+(1/'INPUT and OUTPUT'!$D$12)*(1/INDEX('Unit conversion calculations'!$B$43:$Q$58,MATCH('INPUT and OUTPUT'!$F$12,'Unit conversion calculations'!$B$43:$B$58,0),MATCH('Unit conversion calculations'!$B68,'Unit conversion calculations'!$B$43:$Q$43,0)))*INDEX('Unit conversion calculations'!$B$43:$Q$58,MATCH('INPUT and OUTPUT'!$F$13,'Unit conversion calculations'!$B$43:$B$58,0),MATCH('Unit conversion calculations'!L$62,'Unit conversion calculations'!$B$43:$Q$43,0))","v":2.1995672279420818E-5},{"$f":"+(1/'INPUT and OUTPUT'!$D$12)*(1/INDEX('Unit conversion calculations'!$B$43:$Q$58,MATCH('INPUT and OUTPUT'!$F$12,'Unit conversion calculations'!$B$43:$B$58,0),MATCH('Unit conversion calculations'!$B68,'Unit conversion calculations'!$B$43:$Q$43,0)))*INDEX('Unit conversion calculations'!$B$43:$Q$58,MATCH('INPUT and OUTPUT'!$F$13,'Unit conversion calculations'!$B$43:$B$58,0),MATCH('Unit conversion calculations'!M$62,'Unit conversion calculations'!$B$43:$Q$43,0))","v":3.5312655831176645E-6},{"$f":"+(1/'INPUT and OUTPUT'!$D$12)*(1/INDEX('Unit conversion calculations'!$B$43:$Q$58,MATCH('INPUT and OUTPUT'!$F$12,'Unit conversion calculations'!$B$43:$B$58,0),MATCH('Unit conversion calculations'!$B68,'Unit conversion calculations'!$B$43:$Q$43,0)))*INDEX('Unit conversion calculations'!$B$43:$Q$58,MATCH('INPUT and OUTPUT'!$F$13,'Unit conversion calculations'!$B$43:$B$58,0),MATCH('Unit conversion calculations'!N$62,'Unit conversion calculations'!$B$43:$Q$43,0))","v":6.2894524149256684E-7},{"$f":"+(1/'INPUT and OUTPUT'!$D$12)*(1/INDEX('Unit conversion calculations'!$B$43:$Q$58,MATCH('INPUT and OUTPUT'!$F$12,'Unit conversion calculations'!$B$43:$B$58,0),MATCH('Unit conversion calculations'!$B68,'Unit conversion calculations'!$B$43:$Q$43,0)))*INDEX('Unit conversion calculations'!$B$43:$Q$58,MATCH('INPUT and OUTPUT'!$F$13,'Unit conversion calculations'!$B$43:$B$58,0),MATCH('Unit conversion calculations'!O$62,'Unit conversion calculations'!$B$43:$Q$43,0))","v":9.911171009721903E-2},{"$f":"+(1/'INPUT and OUTPUT'!$D$12)*(1/INDEX('Unit conversion calculations'!$B$43:$Q$58,MATCH('INPUT and OUTPUT'!$F$12,'Unit conversion calculations'!$B$43:$B$58,0),MATCH('Unit conversion calculations'!$B68,'Unit conversion calculations'!$B$43:$Q$43,0)))*INDEX('Unit conversion calculations'!$B$43:$Q$58,MATCH('INPUT and OUTPUT'!$F$13,'Unit conversion calculations'!$B$43:$B$58,0),MATCH('Unit conversion calculations'!P$62,'Unit conversion calculations'!$B$43:$Q$43,0))","v":9.9111710097219042E-5},{"$f":"+(1/'INPUT and OUTPUT'!$D$12)*(1/INDEX('Unit conversion calculations'!$B$43:$Q$58,MATCH('INPUT and OUTPUT'!$F$12,'Unit conversion calculations'!$B$43:$B$58,0),MATCH('Unit conversion calculations'!$B68,'Unit conversion calculations'!$B$43:$Q$43,0)))*INDEX('Unit conversion calculations'!$B$43:$Q$58,MATCH('INPUT and OUTPUT'!$F$13,'Unit conversion calculations'!$B$43:$B$58,0),MATCH('Unit conversion calculations'!Q$62,'Unit conversion calculations'!$B$43:$Q$43,0))","v":9.9111710097219042E-8}]
[null,"m3",{"$f":"+TRANSPOSE(1/I63:Q68)","v":11630.662274014228},11.630662274014229,39654866.779482082,39.654866779482084,41870.384186451229,10000569.453150725,{"$f":"+I50","v":1},1000,264.17205235814998,219.96924829909,35.314666721488997,{"$f":"+N50","v":6.2898105697750699},991173.54044777888,991.17354044777892,0.99117354044777894]
[null,"Litre",11.630662274014229,1.163066227401423E-2,39654.866779482087,3.965486677948208E-2,41.870384186451226,10000.569453150725,{"$f":"+I51","v":1E-3},1,0.26417205235815,0.21996924829909001,3.5314666721489002E-2,{"$f":"+N51","v":6.2898105697750699E-3},991.17354044777892,0.99117354044777894,9.911735404477789E-4]
[null,"US Gallon",44.026846027777431,4.4026846027777435E-2,150110.00000000073,0.15011000000000072,158.49664569999879,37856.273454666967,{"$f":"+I52","v":3.7854117839999776E-3},3.7854117839999772,1,0.83267418462899001,0.13368055555555999,{"$f":"+N52","v":2.3809523049954165E-2},3752,3.7520000000000007,3.752000000000001E-3]
[null,"Imperial Gallon",52.874037457272813,5.2874037457272816E-2,180274.5933175339,0.1802745933175339,190.34653484618215,45463.488785273519,{"$f":"+I53","v":4.5460899999999541E-3},4.5460899999999542,1.2009499255048532,1,0.16054365323589001,{"$f":"+N53","v":2.859404493314846E-2},4505.9641204941981,4.5059641204941983,4.5059641204941983E-3]
[null,"ft3",329.34367937661898,0.32934367937661901,1122900.7792207783,1.1229007792207784,1185.6372457558284,283184.59103750717,{"$f":"+I54","v":2.8316846591999675E-2},28.316846591999671,7.4805194805192325,6.2288354590429051,1,{"$f":"+N54","v":0.17810760099705872},28066.909090908935,28.06690909090894,2.8066909090908941E-2]
[null,"bbl (oil)",1849.1275921573824,1.8491275921573824,6304620.201129552,6.304620201129552,6656.8593317665764,1589963.5358189102,0.1589873,158.9873,42.000001339880896,34.972316870101913,5.6145835124493875,{"$f":"+N55","v":1},157584.00502723316,157.58400502723316,0.15758400502723316]
[null,"gram",1.1734234015932151E-2,1.1734234015932151E-5,40.007995735607864,4.0007995735607864E-5,4.2243242457355744E-2,10.089625121179893,{"$f":"+I56","v":1.0089050597014865E-6},1.0089050597014864E-3,2.6652452025586353E-4,2.2192808758768448E-4,3.5629145936981955E-5,{"$f":"+N56","v":6.345821708409957E-6},1,1E-3,9.9999999999999995E-7]
[null,"kg",11.734234015932151,1.1734234015932151E-2,40007.995735607859,4.0007995735607857E-2,42.243242457355748,10089.625121179892,{"$f":"+I57","v":1.0089050597014864E-3},1.0089050597014864,0.26652452025586348,0.22192808758768448,3.5629145936981951E-2,{"$f":"+N57","v":6.3458217084099572E-3},1000,1,1E-3]
[null,"Metric Tonne",11734.23401593215,11.734234015932151,40007995.735607862,40.007995735607857,42243.242457355744,10089625.121179892,{"$f":"+I58","v":1.0089050597014864},1008.9050597014864,266.52452025586348,221.92808758768447,35.629145936981949,{"$f":"+N58","v":6.3458217084099573},1000000,1000,1]